[Event "Titled Tuesday Blitz May 4 2021"]
[White "Wisniowski, Natalie"]
[Black "Fernandez, Michael"]
[WhiteFideId "30929261"]
[BlackFideId "5803560"]
[WhiteElo "1702"]
[BlackElo "2110"]
[Result "0-1"]
[Round "10"]
[TimeControl "180+1"]
[Date "2021.05.04"]
[WhiteClock "0:00:03"]
[BlackClock "0:01:02"]

1. d4 {[%clk 0:03:00]}  b5 {[%clk 0:02:58]} 2. Nf3 {[%clk 0:02:56]}  Bb7 {[%clk 0:02:58]} 3. c3 {[%clk 0:02:55]}  e6 {[%clk 0:02:57]} 4. Bf4 {[%clk 0:02:54]}  Nf6 {[%clk 0:02:56]} 5. e3 {[%clk 0:02:54]}  b4 {[%clk 0:02:54]} 6. Nbd2 {[%clk 0:02:50]}  a5 {[%clk 0:02:54]} 7. Bd3 {[%clk 0:02:50]}  c5 {[%clk 0:02:46]} 8. O-O {[%clk 0:02:47]}  Nc6 {[%clk 0:02:46]} 9. Ne5 {[%clk 0:02:43]}  d6 {[%clk 0:02:45]} 10. Nxc6 {[%clk 0:02:32]}  Bxc6 {[%clk 0:02:46]} 11. Rc1 {[%clk 0:02:27]}  Be7 {[%clk 0:02:32]} 12. e4 {[%clk 0:01:58]}  O-O {[%clk 0:02:30]} 13. Re1 {[%clk 0:01:56]}  h6 {[%clk 0:02:18]} 14. Nf3 {[%clk 0:01:49]}  d5 {[%clk 0:02:10]} 15. exd5 {[%clk 0:01:43]}  Nxd5 {[%clk 0:02:08]} 16. Bg3 {[%clk 0:01:40]}  Bb7 {[%clk 0:02:02]} 17. c4 {[%clk 0:01:12]}  Nf6 {[%clk 0:01:56]} 18. dxc5 {[%clk 0:00:56]}  Bxc5 {[%clk 0:01:57]} 19. Qe2 {[%clk 0:00:54]}  Qe7 {[%clk 0:01:54]} 20. Rcd1 {[%clk 0:00:54]}  Rfd8 {[%clk 0:01:52]} 21. Bh4 {[%clk 0:00:44]}  Bxf3 {[%clk 0:01:33]} 22. Qxf3 {[%clk 0:00:43]}  Bd4 {[%clk 0:01:34]} 23. Rd2 {[%clk 0:00:36]}  Rac8 {[%clk 0:01:31]} 24. Rde2 {[%clk 0:00:35]}  a4 {[%clk 0:01:20]} 25. Bxf6 {[%clk 0:00:28]}  Qxf6 {[%clk 0:01:19]} 26. Qe4 {[%clk 0:00:28]}  g6 {[%clk 0:01:15]} 27. b3 {[%clk 0:00:20]}  Bc3 {[%clk 0:01:12]} 28. Rd1 {[%clk 0:00:19]}  Rd4 {[%clk 0:01:08]} 29. Qb7 {[%clk 0:00:17]}  Rcd8 {[%clk 0:01:08]} 30. Re3 {[%clk 0:00:14]}  Bd2 {[%clk 0:01:00]} 31. Rxd2 {[%clk 0:00:09]}  Rxd3 {[%clk 0:01:01]} 32. Rexd3 {[%clk 0:00:03]}  Qa1+ {[%clk 0:01:01]} 33. Rd1 {[%clk 0:00:03]}  Qxd1+ {[%clk 0:01:02]} 34. Rxd1 {[%clk 0:00:03]}  Rxd1# {[%clk 0:01:02]} 0-1


[Site "https://www.chess.com"]

[Event "Titled Tuesday Blitz May 4 2021"]
[White "Wu, Christopher"]
[Black "Samadov, Read"]
[WhiteFideId "2040875"]
[BlackFideId "13417444"]
[WhiteElo "2606"]
[BlackElo "2084"]
[Result "0-1"]
[Round "10"]
[TimeControl "180+1"]
[Date "2021.05.04"]
[WhiteClock "0:00:16"]
[BlackClock "0:00:10"]

1. e4 {[%clk 0:03:00]}  c5 {[%clk 0:02:59]} 2. Nf3 {[%clk 0:03:00]}  d6 {[%clk 0:03:00]} 3. d4 {[%clk 0:03:01]}  cxd4 {[%clk 0:03:00]} 4. Nxd4 {[%clk 0:03:01]}  Nf6 {[%clk 0:03:01]} 5. Nc3 {[%clk 0:03:02]}  a6 {[%clk 0:03:01]} 6. h3 {[%clk 0:03:02]}  e6 {[%clk 0:03:01]} 7. g4 {[%clk 0:03:01]}  Be7 {[%clk 0:03:01]} 8. Bg2 {[%clk 0:03:01]}  Nfd7 {[%clk 0:03:01]} 9. O-O {[%clk 0:03:00]}  O-O {[%clk 0:03:01]} 10. Be3 {[%clk 0:03:00]}  Nc6 {[%clk 0:03:01]} 11. Qe2 {[%clk 0:02:55]}  Nxd4 {[%clk 0:03:00]} 12. Bxd4 {[%clk 0:02:55]}  b5 {[%clk 0:03:01]} 13. Rad1 {[%clk 0:02:43]}  Bb7 {[%clk 0:03:00]} 14. f4 {[%clk 0:02:42]}  Rc8 {[%clk 0:02:47]} 15. a3 {[%clk 0:02:41]}  Qc7 {[%clk 0:02:43]} 16. Qf2 {[%clk 0:02:38]}  Qb8 {[%clk 0:02:36]} 17. Rd2 {[%clk 0:02:35]}  Qa8 {[%clk 0:02:26]} 18. g5 {[%clk 0:02:29]}  e5 {[%clk 0:02:25]} 19. Be3 {[%clk 0:02:23]}  exf4 {[%clk 0:02:23]} 20. Bxf4 {[%clk 0:02:23]}  Ne5 {[%clk 0:02:23]} 21. Bxe5 {[%clk 0:02:14]}  dxe5 {[%clk 0:02:22]} 22. Qg3 {[%clk 0:02:14]}  Bc5+ {[%clk 0:02:18]} 23. Kh2 {[%clk 0:02:12]}  Bd4 {[%clk 0:02:18]} 24. Nd5 {[%clk 0:01:53]}  Bxd5 {[%clk 0:01:46]} 25. exd5 {[%clk 0:01:54]}  Qb8 {[%clk 0:01:46]} 26. c3 {[%clk 0:01:52]}  Bc5 {[%clk 0:01:46]} 27. Be4 {[%clk 0:01:50]}  Bd6 {[%clk 0:01:44]} 28. Qh4 {[%clk 0:01:45]}  g6 {[%clk 0:01:44]} 29. Rf3 {[%clk 0:01:35]}  a5 {[%clk 0:01:35]} 30. Rdf2 {[%clk 0:01:34]}  Qc7 {[%clk 0:01:29]} 31. Rf6 {[%clk 0:01:30]}  b4 {[%clk 0:01:22]} 32. cxb4 {[%clk 0:01:22]}  axb4 {[%clk 0:01:22]} 33. axb4 {[%clk 0:01:18]}  Rcd8 {[%clk 0:00:58]} 34. Qg3 {[%clk 0:01:01]}  Qc4 {[%clk 0:00:53]} 35. Qg4 {[%clk 0:00:58]}  Qxb4 {[%clk 0:00:49]} 36. h4 {[%clk 0:00:56]}  Bc5 {[%clk 0:00:38]} 37. Rf1 {[%clk 0:00:50]}  Rxd5 {[%clk 0:00:31]} 38. Qf3 {[%clk 0:00:25]}  Rd2+ {[%clk 0:00:28]} 39. Kh3 {[%clk 0:00:22]}  Rd7 {[%clk 0:00:24]} 40. h5 {[%clk 0:00:21]}  Qd2 {[%clk 0:00:17]} 41. hxg6 {[%clk 0:00:20]}  hxg6 {[%clk 0:00:17]} 42. Bxg6 {[%clk 0:00:20]}  Qxg5 {[%clk 0:00:15]} 43. Bxf7+ {[%clk 0:00:15]}  Rdxf7 {[%clk 0:00:12]} 44. Rxf7 {[%clk 0:00:16]}  Qh6+ {[%clk 0:00:12]} 45. Kg3 {[%clk 0:00:14]}  Qg6+ {[%clk 0:00:12]} 46. Kh3 {[%clk 0:00:14]}  Rxf7 {[%clk 0:00:11]} 47. Qa8+ {[%clk 0:00:15]}  Kg7 {[%clk 0:00:12]} 48. Rxf7+ {[%clk 0:00:15]}  Qxf7 {[%clk 0:00:12]} 49. Qg2+ {[%clk 0:00:15]}  Qg6 {[%clk 0:00:12]} 50. Qd5 {[%clk 0:00:16]}  Qf5+ {[%clk 0:00:11]} 51. Kg3 {[%clk 0:00:15]}  Bf2+ {[%clk 0:00:11]} 52. Kg2 {[%clk 0:00:15]}  Bd4 {[%clk 0:00:12]} 53. Qb7+ {[%clk 0:00:15]}  Kf6 {[%clk 0:00:12]} 54. Qc6+ {[%clk 0:00:15]}  Kg5 {[%clk 0:00:12]} 55. b4 {[%clk 0:00:16]}  Qg4+ {[%clk 0:00:11]} 56. Kh2 {[%clk 0:00:16]}  Qh4+ {[%clk 0:00:11]} 57. Kg2 {[%clk 0:00:16]}  Qg4+ {[%clk 0:00:11]} 58. Kh2 {[%clk 0:00:17]}  Kf4 {[%clk 0:00:10]} 59. b5 {[%clk 0:00:16]}  Qg3+ {[%clk 0:00:10]} 0-1


[Site "https://www.chess.com"]

[Event "Titled Tuesday Blitz May 4 2021"]
[White "Yilmaz, Mustafa"]
[Black "Cunjalo, Faris"]
[WhiteFideId "6302718"]
[BlackFideId "14410710"]
[WhiteElo "2518"]
[BlackElo "2234"]
[Result "1/2-1/2"]
[Round "10"]
[TimeControl "180+1"]
[Date "2021.05.04"]
[WhiteClock "0:00:04"]
[BlackClock "0:00:05"]

1. d4 {[%clk 0:03:00]}  d5 {[%clk 0:02:57]} 2. c4 {[%clk 0:03:01]}  e6 {[%clk 0:02:58]} 3. Nc3 {[%clk 0:03:01]}  c6 {[%clk 0:02:57]} 4. Nf3 {[%clk 0:03:01]}  Nf6 {[%clk 0:02:57]} 5. e3 {[%clk 0:02:58]}  Nbd7 {[%clk 0:02:57]} 6. Qc2 {[%clk 0:02:58]}  Bd6 {[%clk 0:02:57]} 7. Be2 {[%clk 0:02:59]}  O-O {[%clk 0:02:54]} 8. O-O {[%clk 0:02:59]}  dxc4 {[%clk 0:02:54]} 9. Bxc4 {[%clk 0:02:59]}  b5 {[%clk 0:02:55]} 10. Be2 {[%clk 0:03:00]}  Bb7 {[%clk 0:02:56]} 11. Rd1 {[%clk 0:02:58]}  Qb8 {[%clk 0:02:56]} 12. e4 {[%clk 0:02:56]}  e5 {[%clk 0:02:56]} 13. dxe5 {[%clk 0:02:56]}  Nxe5 {[%clk 0:02:56]} 14. g3 {[%clk 0:02:57]}  Re8 {[%clk 0:02:51]} 15. Bg5 {[%clk 0:02:56]}  Neg4 {[%clk 0:02:39]} 16. h3 {[%clk 0:02:53]}  Bxg3 {[%clk 0:02:39]} 17. hxg4 {[%clk 0:02:43]}  Nxg4 {[%clk 0:02:40]} 18. Be3 {[%clk 0:02:44]}  Nxe3 {[%clk 0:02:38]} 19. fxe3 {[%clk 0:02:45]}  Re6 {[%clk 0:02:10]} 20. Rd7 {[%clk 0:02:43]}  Rg6 {[%clk 0:01:24]} 21. Kf1 {[%clk 0:02:32]}  Qe8 {[%clk 0:01:13]} 22. Rxb7 {[%clk 0:01:45]}  Qc8 {[%clk 0:01:12]} 23. Bd3 {[%clk 0:01:17]}  Qxb7 {[%clk 0:01:09]} 24. e5 {[%clk 0:01:18]}  Rh6 {[%clk 0:01:06]} 25. Qg2 {[%clk 0:01:15]}  Bh4 {[%clk 0:01:04]} 26. Ne4 {[%clk 0:01:14]}  Be7 {[%clk 0:00:46]} 27. Ke2 {[%clk 0:01:04]}  Kh8 {[%clk 0:00:43]} 28. Rf1 {[%clk 0:00:58]}  Rf8 {[%clk 0:00:40]} 29. Qg4 {[%clk 0:00:53]}  c5 {[%clk 0:00:34]} 30. Neg5 {[%clk 0:00:46]}  Bxg5 {[%clk 0:00:26]} 31. Qxg5 {[%clk 0:00:39]}  c4 {[%clk 0:00:20]} 32. Bc2 {[%clk 0:00:39]}  Qd5 {[%clk 0:00:18]} 33. Rg1 {[%clk 0:00:38]}  Rg8 {[%clk 0:00:16]} 34. Rd1 {[%clk 0:00:39]}  Qe6 {[%clk 0:00:13]} 35. Qf4 {[%clk 0:00:38]}  Rf8 {[%clk 0:00:10]} 36. Rd6 {[%clk 0:00:35]}  Qh3 {[%clk 0:00:11]} 37. Rxh6 {[%clk 0:00:21]}  Qxh6 {[%clk 0:00:12]} 38. Qxh6 {[%clk 0:00:18]}  gxh6 {[%clk 0:00:12]} 39. Bf5 {[%clk 0:00:18]}  Kg7 {[%clk 0:00:08]} 40. Bd7 {[%clk 0:00:16]}  a6 {[%clk 0:00:08]} 41. Bc6 {[%clk 0:00:15]}  Rb8 {[%clk 0:00:07]} 42. Nd2 {[%clk 0:00:08]}  Rb6 {[%clk 0:00:07]} 43. Bd5 {[%clk 0:00:08]}  h5 {[%clk 0:00:07]} 44. a3 {[%clk 0:00:08]}  h4 {[%clk 0:00:07]} 45. Kf2 {[%clk 0:00:09]}  Rg6 {[%clk 0:00:06]} 46. Ne4 {[%clk 0:00:08]}  h3 {[%clk 0:00:06]} 47. Nf6 {[%clk 0:00:08]}  h2 {[%clk 0:00:06]} 48. Nh5+ {[%clk 0:00:08]}  Kf8 {[%clk 0:00:04]} 49. Ng3 {[%clk 0:00:09]}  Rg5 {[%clk 0:00:05]} 50. Kg2 {[%clk 0:00:08]}  Rxe5 {[%clk 0:00:05]} 51. e4 {[%clk 0:00:08]}  h5 {[%clk 0:00:04]} 52. Kxh2 {[%clk 0:00:08]}  Ke7 {[%clk 0:00:04]} 53. Nf5+ {[%clk 0:00:08]}  Kf6 {[%clk 0:00:05]} 54. Nd4 {[%clk 0:00:07]}  Rxd5 {[%clk 0:00:04]} 55. exd5 {[%clk 0:00:07]}  Ke5 {[%clk 0:00:04]} 56. Nc6+ {[%clk 0:00:06]}  Kd6 {[%clk 0:00:03]} 57. Nb4 {[%clk 0:00:04]}  a5 {[%clk 0:00:03]} 58. Nc6 {[%clk 0:00:04]}  a4 {[%clk 0:00:02]} 59. Na7 {[%clk 0:00:04]}  b4 {[%clk 0:00:02]} 60. axb4 {[%clk 0:00:05]}  Kxd5 {[%clk 0:00:03]} 61. Nb5 {[%clk 0:00:05]}  f5 {[%clk 0:00:02]} 62. Nc3+ {[%clk 0:00:05]}  Kd4 {[%clk 0:00:03]} 63. b5 {[%clk 0:00:04]}  Kc5 {[%clk 0:00:03]} 64. Kg3 {[%clk 0:00:04]}  Kb6 {[%clk 0:00:02]} 65. Nxa4+ {[%clk 0:00:02]}  Kxb5 {[%clk 0:00:02]} 66. Nc3+ {[%clk 0:00:02]}  Kb4 {[%clk 0:00:03]} 67. Nd1 {[%clk 0:00:01]}  Kb3 {[%clk 0:00:03]} 68. Ne3 {[%clk 0:00:02]}  Kxb2 {[%clk 0:00:02]} 69. Nxc4+ {[%clk 0:00:02]}  Kc3 {[%clk 0:00:03]} 70. Ne3 {[%clk 0:00:03]}  Kd4 {[%clk 0:00:04]} 71. Nxf5+ {[%clk 0:00:04]}  Ke5 {[%clk 0:00:04]} 72. Kh4 {[%clk 0:00:04]}  Kf6 {[%clk 0:00:05]} 73. Kxh5 {[%clk 0:00:04]} 1/2-1/2


[Site "https://www.chess.com"]

[Event "Titled Tuesday Blitz May 4 2021"]
[White "Zhukov, Anton"]
[Black "Golubev, Mikhail"]
[WhiteFideId "34187534"]
[BlackFideId "14100983"]
[WhiteElo "2172"]
[BlackElo "2374"]
[Result "1/2-1/2"]
[Round "10"]
[TimeControl "180+1"]
[Date "2021.05.04"]
[WhiteClock "0:00:06"]
[BlackClock "0:00:06"]

1. d4 {[%clk 0:03:00]}  g6 {[%clk 0:02:55]} 2. c4 {[%clk 0:03:01]}  Bg7 {[%clk 0:02:45]} 3. e4 {[%clk 0:03:00]}  d6 {[%clk 0:02:40]} 4. Nc3 {[%clk 0:03:00]}  Nf6 {[%clk 0:02:38]} 5. Be2 {[%clk 0:02:58]}  O-O {[%clk 0:02:39]} 6. Be3 {[%clk 0:02:58]}  Nc6 {[%clk 0:02:37]} 7. d5 {[%clk 0:02:57]}  Ne5 {[%clk 0:02:37]} 8. h3 {[%clk 0:02:57]}  e6 {[%clk 0:02:34]} 9. Nf3 {[%clk 0:02:55]}  Nxf3+ {[%clk 0:02:31]} 10. Bxf3 {[%clk 0:02:55]}  e5 {[%clk 0:02:20]} 11. c5 {[%clk 0:02:52]}  Ne8 {[%clk 0:02:09]} 12. O-O {[%clk 0:02:39]}  f5 {[%clk 0:02:09]} 13. cxd6 {[%clk 0:02:39]}  Nxd6 {[%clk 0:02:04]} 14. Rc1 {[%clk 0:02:32]}  Bd7 {[%clk 0:02:00]} 15. Bc5 {[%clk 0:02:25]}  Bh6 {[%clk 0:01:52]} 16. Rc2 {[%clk 0:02:21]}  b6 {[%clk 0:01:47]} 17. Bxd6 {[%clk 0:02:13]}  cxd6 {[%clk 0:01:48]} 18. Qe2 {[%clk 0:02:13]}  Rc8 {[%clk 0:01:44]} 19. Qa6 {[%clk 0:02:10]}  Rc7 {[%clk 0:01:41]} 20. Be2 {[%clk 0:02:07]}  fxe4 {[%clk 0:01:38]} 21. Bc4 {[%clk 0:01:55]}  e3 {[%clk 0:01:29]} 22. Kh1 {[%clk 0:01:49]}  Qh4 {[%clk 0:01:16]} 23. Nd1 {[%clk 0:01:30]}  Bxh3 {[%clk 0:01:10]} 24. gxh3 {[%clk 0:01:30]}  Qxh3+ {[%clk 0:01:05]} 25. Kg1 {[%clk 0:01:30]}  Qg4+ {[%clk 0:00:55]} 26. Kh1 {[%clk 0:01:26]}  Qh3+ {[%clk 0:00:33]} 27. Kg1 {[%clk 0:01:26]}  Rf5 {[%clk 0:00:24]} 28. fxe3 {[%clk 0:01:20]}  Bxe3+ {[%clk 0:00:14]} 29. Nxe3 {[%clk 0:01:19]}  Qxe3+ {[%clk 0:00:15]} 30. Kh1 {[%clk 0:01:12]}  Qh3+ {[%clk 0:00:12]} 31. Rh2 {[%clk 0:01:08]}  Qg4 {[%clk 0:00:12]} 32. Rxf5 {[%clk 0:01:05]}  Qxf5 {[%clk 0:00:10]} 33. Bf1 {[%clk 0:00:58]}  Rc1 {[%clk 0:00:08]} 34. Kg1 {[%clk 0:00:58]}  Qg4+ {[%clk 0:00:08]} 35. Rg2 {[%clk 0:00:57]}  Qd4+ {[%clk 0:00:08]} 36. Kh1 {[%clk 0:00:51]}  Qf4 {[%clk 0:00:07]} 37. Kg1 {[%clk 0:00:50]}  e4 {[%clk 0:00:08]} 38. Qe2 {[%clk 0:00:47]}  e3 {[%clk 0:00:07]} 39. Rh2 {[%clk 0:00:25]}  Rc5 {[%clk 0:00:07]} 40. Rh3 {[%clk 0:00:23]}  Qg5+ {[%clk 0:00:06]} 41. Kh1 {[%clk 0:00:21]}  Qxd5+ {[%clk 0:00:06]} 42. Bg2 {[%clk 0:00:19]}  Rc1+ {[%clk 0:00:05]} 43. Kh2 {[%clk 0:00:18]}  Qe5+ {[%clk 0:00:06]} 44. Rg3 {[%clk 0:00:18]}  Rb1 {[%clk 0:00:05]} 45. Qxe3 {[%clk 0:00:18]}  Qxe3 {[%clk 0:00:06]} 46. Rxe3 {[%clk 0:00:18]}  Rxb2 {[%clk 0:00:06]} 47. Kg3 {[%clk 0:00:18]}  a5 {[%clk 0:00:05]} 48. Bd5+ {[%clk 0:00:18]}  Kg7 {[%clk 0:00:05]} 49. Re7+ {[%clk 0:00:19]}  Kf6 {[%clk 0:00:05]} 50. Rxh7 {[%clk 0:00:19]}  Ke5 {[%clk 0:00:05]} 51. Bb3 {[%clk 0:00:19]}  Kd4 {[%clk 0:00:05]} 52. Rd7 {[%clk 0:00:18]}  Kc5 {[%clk 0:00:04]} 53. Rc7+ {[%clk 0:00:19]}  Kb4 {[%clk 0:00:04]} 54. Rc4+ {[%clk 0:00:18]}  Kb5 {[%clk 0:00:04]} 55. Rd4 {[%clk 0:00:19]}  Kc5 {[%clk 0:00:04]} 56. Rc4+ {[%clk 0:00:18]}  Kb5 {[%clk 0:00:04]} 57. Rd4 {[%clk 0:00:17]}  Kc5 {[%clk 0:00:04]} 58. Rd5+ {[%clk 0:00:17]}  Kc6 {[%clk 0:00:04]} 59. Rg5 {[%clk 0:00:17]}  b5 {[%clk 0:00:05]} 60. Rxg6 {[%clk 0:00:17]}  a4 {[%clk 0:00:05]} 61. Bg8 {[%clk 0:00:17]}  b4 {[%clk 0:00:05]} 62. Rg4 {[%clk 0:00:16]}  Kc5 {[%clk 0:00:05]} 63. Rg5+ {[%clk 0:00:15]}  Kc6 {[%clk 0:00:05]} 64. Rg4 {[%clk 0:00:15]}  Kc5 {[%clk 0:00:05]} 65. Rg5+ {[%clk 0:00:15]}  Kc6 {[%clk 0:00:05]} 66. Bf7 {[%clk 0:00:16]}  b3 {[%clk 0:00:05]} 67. axb3 {[%clk 0:00:12]}  axb3 {[%clk 0:00:05]} 68. Rg4 {[%clk 0:00:12]}  Rc2 {[%clk 0:00:04]} 69. Rb4 {[%clk 0:00:09]}  Rc3+ {[%clk 0:00:03]} 70. Kf2 {[%clk 0:00:09]}  d5 {[%clk 0:00:04]} 71. Ke2 {[%clk 0:00:07]}  Kc5 {[%clk 0:00:05]} 72. Rb8 {[%clk 0:00:06]}  Kd4 {[%clk 0:00:05]} 73. Kd2 {[%clk 0:00:06]}  Rc2+ {[%clk 0:00:05]} 74. Kd1 {[%clk 0:00:07]}  Kc3 {[%clk 0:00:05]} 75. Rc8+ {[%clk 0:00:07]}  Kb2 {[%clk 0:00:05]} 76. Rb8 {[%clk 0:00:07]}  Rc1+ {[%clk 0:00:05]} 77. Kd2 {[%clk 0:00:07]}  Rc4 {[%clk 0:00:05]} 78. Kd3 {[%clk 0:00:05]}  Rc3+ {[%clk 0:00:05]} 79. Kd2 {[%clk 0:00:05]}  Rc2+ {[%clk 0:00:05]} 80. Kd3 {[%clk 0:00:06]}  Rc3+ {[%clk 0:00:05]} 81. Kd2 {[%clk 0:00:06]}  Rc2+ {[%clk 0:00:05]} 82. Kd3 {[%clk 0:00:06]}  Rc3+ {[%clk 0:00:06]} 1/2-1/2


[Site "https://www.chess.com"]

[Event "Titled Tuesday Blitz May 4 2021"]
[White "de Leon, Patricia"]
[Black "Haessel, Dale R."]
[WhiteFideId "3000273"]
[BlackFideId "2012618"]
[WhiteElo "1989"]
[BlackElo "2167"]
[Result "0-1"]
[Round "10"]
[TimeControl "180+1"]
[Date "2021.05.04"]
[WhiteClock "0:01:26"]
[BlackClock "0:01:43"]

1. d4 {[%clk 0:03:00]}  Nf6 {[%clk 0:02:58]} 2. c4 {[%clk 0:03:00]}  g6 {[%clk 0:02:57]} 3. Nc3 {[%clk 0:03:00]}  d5 {[%clk 0:02:57]} 4. Bf4 {[%clk 0:02:59]}  Bg7 {[%clk 0:02:55]} 5. Rc1 {[%clk 0:02:59]}  Nh5 {[%clk 0:02:31]} 6. Be5 {[%clk 0:02:55]}  Bxe5 {[%clk 0:02:14]} 7. dxe5 {[%clk 0:02:56]}  d4 {[%clk 0:02:12]} 8. Ne4 {[%clk 0:02:37]}  c5 {[%clk 0:02:03]} 9. Nxc5 {[%clk 0:02:28]}  Qa5+ {[%clk 0:02:02]} 10. Qd2 {[%clk 0:02:10]}  Qxc5 {[%clk 0:02:01]} 11. Nf3 {[%clk 0:02:10]}  Nc6 {[%clk 0:02:00]} 12. g4 {[%clk 0:01:55]}  Bxg4 {[%clk 0:01:56]} 13. h3 {[%clk 0:01:53]}  Bxf3 {[%clk 0:01:54]} 14. exf3 {[%clk 0:01:53]}  Nxe5 {[%clk 0:01:53]} 15. Bg2 {[%clk 0:01:51]}  Nf4 {[%clk 0:01:50]} 16. O-O {[%clk 0:01:51]}  Ned3 {[%clk 0:01:44]} 17. Rc2 {[%clk 0:01:26]}  Qg5 {[%clk 0:01:43]} 0-1


[Site "https://www.chess.com"]

[Event "Titled Tuesday Blitz May 4 2021"]
[White "Abdusattorov, Nodirbek"]
[Black "Srihari L R"]
[WhiteFideId "14204118"]
[BlackFideId "46617116"]
[WhiteElo "2662"]
[BlackElo "2121"]
[Result "1-0"]
[Round "11"]
[TimeControl "180+1"]
[Date "2021.05.04"]
[WhiteClock "0:01:53"]
[BlackClock "0:00:11"]

1. d4 {[%clk 0:03:00]}  f5 {[%clk 0:02:57]} 2. g3 {[%clk 0:02:59]}  Nf6 {[%clk 0:02:56]} 3. Bg2 {[%clk 0:03:00]}  g6 {[%clk 0:02:55]} 4. Nc3 {[%clk 0:02:56]}  Bg7 {[%clk 0:02:55]} 5. e4 {[%clk 0:02:55]}  fxe4 {[%clk 0:02:50]} 6. Nxe4 {[%clk 0:02:56]}  O-O {[%clk 0:02:50]} 7. Ne2 {[%clk 0:02:56]}  d5 {[%clk 0:02:49]} 8. Nxf6+ {[%clk 0:02:54]}  exf6 {[%clk 0:02:49]} 9. O-O {[%clk 0:02:55]}  c6 {[%clk 0:02:50]} 10. b3 {[%clk 0:02:53]}  Bg4 {[%clk 0:02:49]} 11. f3 {[%clk 0:02:47]}  Bf5 {[%clk 0:02:48]} 12. g4 {[%clk 0:02:45]}  Be6 {[%clk 0:02:46]} 13. Be3 {[%clk 0:02:41]}  Re8 {[%clk 0:02:44]} 14. Qd2 {[%clk 0:02:42]}  Nd7 {[%clk 0:02:43]} 15. Rae1 {[%clk 0:02:41]}  Bf7 {[%clk 0:02:39]} 16. h4 {[%clk 0:02:41]}  Qe7 {[%clk 0:02:22]} 17. Ng3 {[%clk 0:02:39]}  Qf8 {[%clk 0:02:11]} 18. f4 {[%clk 0:02:38]}  f5 {[%clk 0:02:03]} 19. gxf5 {[%clk 0:02:37]}  Nf6 {[%clk 0:01:59]} 20. fxg6 {[%clk 0:02:37]}  hxg6 {[%clk 0:01:44]} 21. f5 {[%clk 0:02:37]}  Qd6 {[%clk 0:01:44]} 22. Bf4 {[%clk 0:02:36]}  Qd7 {[%clk 0:01:44]} 23. Be5 {[%clk 0:02:37]}  Ng4 {[%clk 0:01:32]} 24. Bxg7 {[%clk 0:02:32]}  Kxg7 {[%clk 0:01:25]} 25. Qg5 {[%clk 0:02:32]}  Rxe1 {[%clk 0:01:17]} 26. Rxe1 {[%clk 0:02:29]}  Nf6 {[%clk 0:00:57]} 27. fxg6 {[%clk 0:02:29]}  Be6 {[%clk 0:00:36]} 28. h5 {[%clk 0:02:26]}  Ng4 {[%clk 0:00:26]} 29. h6+ {[%clk 0:02:15]}  Kg8 {[%clk 0:00:22]} 30. Nh5 {[%clk 0:02:11]}  Rf8 {[%clk 0:00:20]} 31. h7+ {[%clk 0:02:11]}  Kh8 {[%clk 0:00:18]} 32. g7+ {[%clk 0:02:11]}  Kxh7 {[%clk 0:00:17]} 33. gxf8=N+ {[%clk 0:01:59]}  Kh8 {[%clk 0:00:17]} 34. Nxd7 {[%clk 0:01:56]}  Bxd7 {[%clk 0:00:16]} 35. Qd8+ {[%clk 0:01:55]}  Kh7 {[%clk 0:00:15]} 36. Qxd7+ {[%clk 0:01:55]}  Kh6 {[%clk 0:00:14]} 37. Qxg4 {[%clk 0:01:56]}  c5 {[%clk 0:00:13]} 38. dxc5 {[%clk 0:01:55]}  b6 {[%clk 0:00:12]} 39. c6 {[%clk 0:01:55]}  d4 {[%clk 0:00:11]} 40. c7 {[%clk 0:01:53]} 1-0


[Site "https://www.chess.com"]

[Event "Titled Tuesday Blitz May 4 2021"]
[White "Aditya Mittal"]
[Black "Omk124"]
[WhiteFideId "35042025"]
[WhiteElo "2171"]
[BlackElo "2604"]
[Result "1-0"]
[Round "11"]
[TimeControl "180+1"]
[Date "2021.05.04"]
[WhiteClock "0:00:11"]
[BlackClock "0:00:19"]

1. d4 {[%clk 0:03:00]}  Nf6 {[%clk 0:02:59]} 2. c4 {[%clk 0:03:01]}  g6 {[%clk 0:02:59]} 3. Nc3 {[%clk 0:03:01]}  d5 {[%clk 0:03:00]} 4. cxd5 {[%clk 0:03:02]}  Nxd5 {[%clk 0:03:00]} 5. Bd2 {[%clk 0:03:01]}  Nb6 {[%clk 0:03:00]} 6. Nf3 {[%clk 0:02:59]}  Bg7 {[%clk 0:03:00]} 7. Qc1 {[%clk 0:02:59]}  Nc6 {[%clk 0:02:59]} 8. Bh6 {[%clk 0:02:45]}  O-O {[%clk 0:02:51]} 9. Bxg7 {[%clk 0:02:44]}  Kxg7 {[%clk 0:02:52]} 10. Qd2 {[%clk 0:02:41]}  Bg4 {[%clk 0:02:51]} 11. d5 {[%clk 0:02:25]}  Bxf3 {[%clk 0:02:51]} 12. gxf3 {[%clk 0:02:24]}  Ne5 {[%clk 0:02:50]} 13. f4 {[%clk 0:02:23]}  Ned7 {[%clk 0:02:49]} 14. h4 {[%clk 0:02:19]}  Nf6 {[%clk 0:02:49]} 15. O-O-O {[%clk 0:02:10]}  e6 {[%clk 0:02:31]} 16. dxe6 {[%clk 0:01:34]}  Qxd2+ {[%clk 0:02:30]} 17. Rxd2 {[%clk 0:01:35]}  fxe6 {[%clk 0:02:31]} 18. Bg2 {[%clk 0:01:35]}  c6 {[%clk 0:02:30]} 19. e3 {[%clk 0:01:34]}  Nfd5 {[%clk 0:02:29]} 20. Ne4 {[%clk 0:01:32]}  Rae8 {[%clk 0:02:17]} 21. h5 {[%clk 0:01:32]}  e5 {[%clk 0:02:13]} 22. Nd6 {[%clk 0:01:18]}  Re6 {[%clk 0:01:48]} 23. fxe5 {[%clk 0:01:18]}  Rxe5 {[%clk 0:01:48]} 24. Nxb7 {[%clk 0:01:16]}  gxh5 {[%clk 0:01:43]} 25. Nd6 {[%clk 0:00:49]}  Rf6 {[%clk 0:01:35]} 26. Ne4 {[%clk 0:00:43]}  Rg6 {[%clk 0:01:35]} 27. Bf3 {[%clk 0:00:38]}  Nf6 {[%clk 0:00:55]} 28. Ng3 {[%clk 0:00:29]}  Rc5+ {[%clk 0:00:52]} 29. Kb1 {[%clk 0:00:29]}  Kh6 {[%clk 0:00:42]} 30. b3 {[%clk 0:00:26]}  Rcg5 {[%clk 0:00:42]} 31. Bxc6 {[%clk 0:00:22]}  Ng4 {[%clk 0:00:36]} 32. Be4 {[%clk 0:00:21]}  Rf6 {[%clk 0:00:33]} 33. f4 {[%clk 0:00:22]}  Rc5 {[%clk 0:00:27]} 34. Rc2 {[%clk 0:00:22]}  Rxc2 {[%clk 0:00:27]} 35. Rxh5+ {[%clk 0:00:23]}  Kg7 {[%clk 0:00:26]} 36. Rxh7+ {[%clk 0:00:20]}  Kg8 {[%clk 0:00:26]} 37. Kxc2 {[%clk 0:00:20]}  Nxe3+ {[%clk 0:00:27]} 38. Kd3 {[%clk 0:00:21]}  Ned5 {[%clk 0:00:27]} 39. Rxa7 {[%clk 0:00:17]}  Nxf4+ {[%clk 0:00:27]} 40. Ke3 {[%clk 0:00:17]}  Nfd5+ {[%clk 0:00:27]} 41. Bxd5+ {[%clk 0:00:18]}  Nxd5+ {[%clk 0:00:28]} 42. Kd4 {[%clk 0:00:18]}  Nb4 {[%clk 0:00:29]} 43. Ra8+ {[%clk 0:00:16]}  Kg7 {[%clk 0:00:29]} 44. Ne4 {[%clk 0:00:16]}  Rf4 {[%clk 0:00:29]} 45. Ke5 {[%clk 0:00:16]}  Rh4 {[%clk 0:00:29]} 46. Ra4 {[%clk 0:00:12]}  Nc6+ {[%clk 0:00:29]} 47. Kd6 {[%clk 0:00:12]}  Rh6+ {[%clk 0:00:28]} 48. Kc7 {[%clk 0:00:12]}  Ne5 {[%clk 0:00:28]} 49. Nd6 {[%clk 0:00:11]}  Rh2 {[%clk 0:00:26]} 50. Nc4 {[%clk 0:00:10]}  Rc2 {[%clk 0:00:26]} 51. Kd6 {[%clk 0:00:09]}  Nd3 {[%clk 0:00:26]} 52. Kd5 {[%clk 0:00:08]}  Nf4+ {[%clk 0:00:25]} 53. Kc5 {[%clk 0:00:09]}  Ne6+ {[%clk 0:00:25]} 54. Kb5 {[%clk 0:00:09]}  Nc7+ {[%clk 0:00:25]} 55. Kb6 {[%clk 0:00:09]}  Nd5+ {[%clk 0:00:25]} 56. Kc5 {[%clk 0:00:10]}  Nc3 {[%clk 0:00:25]} 57. Ra7+ {[%clk 0:00:10]}  Kf6 {[%clk 0:00:26]} 58. a4 {[%clk 0:00:11]}  Ne4+ {[%clk 0:00:25]} 59. Kb4 {[%clk 0:00:11]}  Nc3 {[%clk 0:00:23]} 60. a5 {[%clk 0:00:10]}  Ke6 {[%clk 0:00:23]} 61. a6 {[%clk 0:00:10]}  Ne4 {[%clk 0:00:23]} 62. Rb7 {[%clk 0:00:09]}  Ra2 {[%clk 0:00:20]} 63. Na5 {[%clk 0:00:09]}  Nd6 {[%clk 0:00:20]} 64. Rb6 {[%clk 0:00:10]}  Kd7 {[%clk 0:00:19]} 65. Rxd6+ {[%clk 0:00:10]}  Kxd6 {[%clk 0:00:19]} 66. a7 {[%clk 0:00:11]} 1-0


[Site "https://www.chess.com"]